[Event "Titled Tuesday Blitz April 11 Late 2023"]
[White "Anton Guijarro, David"]
[Black "Gharibyan, Mamikon"]
[WhiteFideId "2285525"]
[BlackFideId "13308300"]
[WhiteElo "2618"]
[BlackElo "2445"]
[Result "1/2-1/2"]
[Round "07"]
[TimeControl "180+2"]
[Date "2023.04.11"]
[WhiteClock "0:00:03"]
[BlackClock "0:00:03"]

1. d4 {[%clk 0:03:00]}  Nf6 {[%clk 0:02:57]} 2. Nf3 {[%clk 0:03:01]}  d5 {[%clk 0:02:54]} 3. e3 {[%clk 0:03:01]}  c5 {[%clk 0:02:51]} 4. Be2 {[%clk 0:03:00]}  Nc6 {[%clk 0:02:48]} 5. O-O {[%clk 0:03:00]}  Bf5 {[%clk 0:02:39]} 6. dxc5 {[%clk 0:02:48]}  e6 {[%clk 0:02:40]} 7. a3 {[%clk 0:02:34]}  Bxc5 {[%clk 0:02:38]} 8. b4 {[%clk 0:02:34]}  Bd6 {[%clk 0:02:36]} 9. Bb2 {[%clk 0:02:33]}  O-O {[%clk 0:02:36]} 10. Nbd2 {[%clk 0:02:32]}  Qe7 {[%clk 0:02:28]} 11. c4 {[%clk 0:02:32]}  dxc4 {[%clk 0:02:04]} 12. Nxc4 {[%clk 0:02:31]}  Bc7 {[%clk 0:02:04]} 13. Rc1 {[%clk 0:02:22]}  a6 {[%clk 0:01:59]} 14. Qb3 {[%clk 0:02:17]}  Rfd8 {[%clk 0:01:53]} 15. h3 {[%clk 0:02:17]}  h6 {[%clk 0:01:53]} 16. Rfd1 {[%clk 0:02:16]}  Be4 {[%clk 0:01:51]} 17. Qa2 {[%clk 0:02:12]}  Rxd1+ {[%clk 0:01:42]} 18. Rxd1 {[%clk 0:02:11]}  Rd8 {[%clk 0:01:43]} 19. Rc1 {[%clk 0:02:10]}  Bb8 {[%clk 0:01:42]} 20. Qa1 {[%clk 0:02:10]}  Bd5 {[%clk 0:01:17]} 21. Ncd2 {[%clk 0:02:09]}  e5 {[%clk 0:01:13]} 22. Nf1 {[%clk 0:01:52]}  Ne4 {[%clk 0:01:04]} 23. Qb1 {[%clk 0:01:40]}  Ba7 {[%clk 0:00:52]} 24. Rd1 {[%clk 0:01:31]}  Qe6 {[%clk 0:00:36]} 25. Nh4 {[%clk 0:00:51]}  Qf6 {[%clk 0:00:29]} 26. Nf3 {[%clk 0:00:51]}  Qe6 {[%clk 0:00:29]} 27. Bd3 {[%clk 0:00:34]}  Nxf2 {[%clk 0:00:24]} 28. Bf5 {[%clk 0:00:34]}  Nxd1 {[%clk 0:00:16]} 29. Bxe6 {[%clk 0:00:34]}  Bxe6 {[%clk 0:00:16]} 30. Nxe5 {[%clk 0:00:13]}  Nxe3 {[%clk 0:00:10]} 31. Nxc6 {[%clk 0:00:13]}  bxc6 {[%clk 0:00:10]} 32. Nxe3 {[%clk 0:00:14]}  Bxe3+ {[%clk 0:00:11]} 33. Kh1 {[%clk 0:00:14]}  Rd2 {[%clk 0:00:09]} 34. Qe4 {[%clk 0:00:11]}  Rxb2 {[%clk 0:00:07]} 35. Qxe3 {[%clk 0:00:11]}  Bd5 {[%clk 0:00:07]} 36. Kg1 {[%clk 0:00:10]}  Rxg2+ {[%clk 0:00:07]} 37. Kf1 {[%clk 0:00:11]}  Ra2 {[%clk 0:00:06]} 38. Qc3 {[%clk 0:00:09]}  Kh7 {[%clk 0:00:06]} 39. h4 {[%clk 0:00:04]}  h5 {[%clk 0:00:05]} 40. Qg3 {[%clk 0:00:04]}  g6 {[%clk 0:00:05]} 41. Ke1 {[%clk 0:00:05]}  Rg2 {[%clk 0:00:05]} 42. Qe3 {[%clk 0:00:04]}  Rg4 {[%clk 0:00:04]} 43. Qa7 {[%clk 0:00:04]}  Bc4 {[%clk 0:00:02]} 44. Qc5 {[%clk 0:00:02]}  Re4+ {[%clk 0:00:02]} 45. Kd2 {[%clk 0:00:01]}  Rxh4 {[%clk 0:00:02]} 46. Qe7 {[%clk 0:00:01]}  Rg4 {[%clk 0:00:01]} 47. Kc3 {[%clk 0:00:02]}  Bd5 {[%clk 0:00:01]} 48. Qa7 {[%clk 0:00:02]}  h4 {[%clk 0:00:02]} 49. Qxa6 {[%clk 0:00:02]}  h3 {[%clk 0:00:02]} 50. Qe2 {[%clk 0:00:02]}  Rh4 {[%clk 0:00:03]} 51. Qh2 {[%clk 0:00:02]}  Bg2 {[%clk 0:00:03]} 52. a4 {[%clk 0:00:02]}  c5 {[%clk 0:00:02]} 53. b5 {[%clk 0:00:03]}  Rxa4 {[%clk 0:00:02]} 54. Qc7 {[%clk 0:00:02]}  Ra3+ {[%clk 0:00:02]} 55. Kb2 {[%clk 0:00:02]}  Rd3 {[%clk 0:00:02]} 56. Qxf7+ {[%clk 0:00:02]}  Kh6 {[%clk 0:00:02]} 57. Qf4+ {[%clk 0:00:02]}  g5 {[%clk 0:00:02]} 58. Qf8+ {[%clk 0:00:03]}  Kh5 {[%clk 0:00:02]} 59. Qf7+ {[%clk 0:00:02]}  Kg4 {[%clk 0:00:02]} 60. Qe6+ {[%clk 0:00:03]}  Kf4 {[%clk 0:00:02]} 61. Qf6+ {[%clk 0:00:03]}  Kg4 {[%clk 0:00:02]} 62. Qe6+ {[%clk 0:00:03]}  Kf4 {[%clk 0:00:02]} 63. Qf6+ {[%clk 0:00:03]}  Kg4 {[%clk 0:00:03]} 64. Qe6+ {[%clk 0:00:03]} 1/2-1/2


[Site "https://www.chess.com"]

[Event "Titled Tuesday Blitz April 11 Late 2023"]
[White "Bakalchuk, Johnatan"]
[Black "Alekseenko, Kirill"]
[WhiteFideId "2810301"]
[BlackFideId "4135539"]
[WhiteElo "2450"]
[BlackElo "2683"]
[Result "1-0"]
[Round "07"]
[TimeControl "180+2"]
[Date "2023.04.11"]
[WhiteClock "0:00:20"]
[BlackClock "0:00:17"]

1. e4 {[%clk 0:02:42]}  c5 {[%clk 0:02:58]} 2. Nf3 {[%clk 0:02:41]}  Nc6 {[%clk 0:02:59]} 3. Nc3 {[%clk 0:02:41]}  d6 {[%clk 0:02:58]} 4. d4 {[%clk 0:02:40]}  cxd4 {[%clk 0:02:59]} 5. Nxd4 {[%clk 0:02:41]}  Nf6 {[%clk 0:03:00]} 6. Bc4 {[%clk 0:02:41]}  Bd7 {[%clk 0:02:56]} 7. f3 {[%clk 0:02:37]}  g6 {[%clk 0:02:56]} 8. Be3 {[%clk 0:02:37]}  Bg7 {[%clk 0:02:57]} 9. Qe2 {[%clk 0:02:38]}  O-O {[%clk 0:02:47]} 10. O-O-O {[%clk 0:02:37]}  Rc8 {[%clk 0:02:39]} 11. Kb1 {[%clk 0:02:33]}  Na5 {[%clk 0:02:32]} 12. Bb3 {[%clk 0:02:28]}  a6 {[%clk 0:02:27]} 13. Qd2 {[%clk 0:02:27]}  Nc4 {[%clk 0:02:22]} 14. Bxc4 {[%clk 0:02:25]}  Rxc4 {[%clk 0:02:23]} 15. Nde2 {[%clk 0:02:18]}  b5 {[%clk 0:02:16]} 16. Bh6 {[%clk 0:02:11]}  b4 {[%clk 0:02:06]} 17. Nd5 {[%clk 0:02:11]}  Nxd5 {[%clk 0:01:46]} 18. Bxg7 {[%clk 0:02:11]}  Kxg7 {[%clk 0:01:43]} 19. exd5 {[%clk 0:02:08]}  Qa5 {[%clk 0:01:36]} 20. g4 {[%clk 0:01:53]}  Rfc8 {[%clk 0:01:35]} 21. Rc1 {[%clk 0:01:48]}  e6 {[%clk 0:01:26]} 22. dxe6 {[%clk 0:01:35]}  Bxe6 {[%clk 0:01:27]} 23. b3 {[%clk 0:01:36]}  R4c5 {[%clk 0:01:25]} 24. Nf4 {[%clk 0:01:15]}  Qc7 {[%clk 0:01:09]} 25. h4 {[%clk 0:01:10]}  h6 {[%clk 0:01:02]} 26. h5 {[%clk 0:00:43]}  g5 {[%clk 0:00:57]} 27. Qd4+ {[%clk 0:00:43]}  Kg8 {[%clk 0:00:37]} 28. Nxe6 {[%clk 0:00:41]}  fxe6 {[%clk 0:00:38]} 29. Qf6 {[%clk 0:00:34]}  Qf7 {[%clk 0:00:31]} 30. Qxh6 {[%clk 0:00:34]}  Rf8 {[%clk 0:00:25]} 31. Rhe1 {[%clk 0:00:28]}  Re8 {[%clk 0:00:25]} 32. Rcd1 {[%clk 0:00:26]}  Rc6 {[%clk 0:00:23]} 33. Qxg5+ {[%clk 0:00:24]}  Qg7 {[%clk 0:00:23]} 34. Qxg7+ {[%clk 0:00:24]}  Kxg7 {[%clk 0:00:24]} 35. Rd4 {[%clk 0:00:23]}  a5 {[%clk 0:00:24]} 36. Rde4 {[%clk 0:00:22]}  e5 {[%clk 0:00:24]} 37. f4 {[%clk 0:00:21]}  Rc5 {[%clk 0:00:23]} 38. g5 {[%clk 0:00:16]}  Rh8 {[%clk 0:00:17]} 39. fxe5 {[%clk 0:00:15]}  dxe5 {[%clk 0:00:14]} 40. Rxe5 {[%clk 0:00:16]}  Rxe5 {[%clk 0:00:13]} 41. Rxe5 {[%clk 0:00:17]}  Rxh5 {[%clk 0:00:14]} 42. Rxa5 {[%clk 0:00:17]}  Kg6 {[%clk 0:00:14]} 43. Rb5 {[%clk 0:00:18]}  Rh4 {[%clk 0:00:14]} 44. Kb2 {[%clk 0:00:18]}  Rf4 {[%clk 0:00:15]} 45. a3 {[%clk 0:00:17]}  bxa3+ {[%clk 0:00:15]} 46. Kxa3 {[%clk 0:00:18]}  Rf2 {[%clk 0:00:15]} 47. c4 {[%clk 0:00:19]}  Rf1 {[%clk 0:00:16]} 48. Kb4 {[%clk 0:00:19]}  Rf4 {[%clk 0:00:16]} 49. Rd5 {[%clk 0:00:20]}  Rf8 {[%clk 0:00:16]} 50. Kc5 {[%clk 0:00:20]}  Rb8 {[%clk 0:00:16]} 51. b4 {[%clk 0:00:20]}  Rc8+ {[%clk 0:00:17]} 52. Kd4 {[%clk 0:00:20]} 1-0


[Site "https://www.chess.com"]

[Event "Titled Tuesday Blitz April 11 Late 2023"]
[White "Rustemov, Alexander"]
[Black "Martinez Alcantara, Jose Eduardo"]
[WhiteFideId "4119002"]
[BlackFideId "3805662"]
[WhiteElo "2525"]
[BlackElo "2711"]
[Result "1-0"]
[Round "07"]
[TimeControl "180+2"]
[Date "2023.04.11"]
[WhiteClock "0:00:05"]
[BlackClock "0:00:14"]

1. d4 {[%clk 0:03:00]}  g6 {[%clk 0:02:59]} 2. c4 {[%clk 0:03:01]}  Bg7 {[%clk 0:03:00]} 3. Nf3 {[%clk 0:03:01]}  d6 {[%clk 0:03:00]} 4. g3 {[%clk 0:03:01]}  Nd7 {[%clk 0:03:00]} 5. Bg2 {[%clk 0:03:02]}  e5 {[%clk 0:03:00]} 6. Nc3 {[%clk 0:03:02]}  Ne7 {[%clk 0:03:00]} 7. O-O {[%clk 0:03:02]}  O-O {[%clk 0:03:01]} 8. e4 {[%clk 0:03:02]}  Nc6 {[%clk 0:02:48]} 9. Bg5 {[%clk 0:03:00]}  Bf6 {[%clk 0:02:34]} 10. Be3 {[%clk 0:02:49]}  Nb6 {[%clk 0:02:34]} 11. d5 {[%clk 0:02:36]}  Ne7 {[%clk 0:02:15]} 12. Qd3 {[%clk 0:02:34]}  Nd7 {[%clk 0:02:11]} 13. b4 {[%clk 0:02:32]}  a6 {[%clk 0:02:10]} 14. c5 {[%clk 0:02:28]}  Bg7 {[%clk 0:02:10]} 15. Nd2 {[%clk 0:02:27]}  f5 {[%clk 0:02:10]} 16. f3 {[%clk 0:02:27]}  f4 {[%clk 0:02:10]} 17. Bf2 {[%clk 0:02:26]}  fxg3 {[%clk 0:02:10]} 18. hxg3 {[%clk 0:02:26]}  Nf6 {[%clk 0:02:08]} 19. Nc4 {[%clk 0:02:24]}  g5 {[%clk 0:01:43]} 20. cxd6 {[%clk 0:02:17]}  cxd6 {[%clk 0:01:44]} 21. Bb6 {[%clk 0:02:14]}  Qd7 {[%clk 0:01:44]} 22. Ne3 {[%clk 0:02:08]}  h5 {[%clk 0:01:38]} 23. a4 {[%clk 0:02:07]}  Qe8 {[%clk 0:01:38]} 24. Nc4 {[%clk 0:01:59]}  Qg6 {[%clk 0:01:37]} 25. Nxd6 {[%clk 0:01:53]}  h4 {[%clk 0:01:37]} 26. g4 {[%clk 0:01:53]}  Ne8 {[%clk 0:01:11]} 27. Nxc8 {[%clk 0:01:47]}  Nxc8 {[%clk 0:01:11]} 28. Be3 {[%clk 0:01:46]}  Ned6 {[%clk 0:01:07]} 29. a5 {[%clk 0:01:41]}  Bf6 {[%clk 0:01:02]} 30. Na4 {[%clk 0:01:41]}  Nb5 {[%clk 0:00:59]} 31. Nc5 {[%clk 0:01:40]}  Ncd6 {[%clk 0:00:58]} 32. Rac1 {[%clk 0:01:34]}  Rfc8 {[%clk 0:00:57]} 33. Nd7 {[%clk 0:01:28]}  Bg7 {[%clk 0:00:53]} 34. Nb6 {[%clk 0:01:23]}  Rxc1 {[%clk 0:00:53]} 35. Rxc1 {[%clk 0:01:23]}  Rf8 {[%clk 0:00:53]} 36. Nd7 {[%clk 0:01:17]}  Rf7 {[%clk 0:00:50]} 37. Nc5 {[%clk 0:01:16]}  h3 {[%clk 0:00:50]} 38. Bh1 {[%clk 0:01:13]}  Nd4 {[%clk 0:00:49]} 39. Rf1 {[%clk 0:01:10]}  N6b5 {[%clk 0:00:40]} 40. Kh2 {[%clk 0:01:10]}  Bf8 {[%clk 0:00:39]} 41. Qd2 {[%clk 0:01:03]}  Be7 {[%clk 0:00:34]} 42. Nd3 {[%clk 0:00:57]}  Qf6 {[%clk 0:00:29]} 43. Qf2 {[%clk 0:00:45]}  Bd6 {[%clk 0:00:26]} 44. Qg3 {[%clk 0:00:44]}  Ne2 {[%clk 0:00:25]} 45. Qf2 {[%clk 0:00:43]}  Nbd4 {[%clk 0:00:25]} 46. Re1 {[%clk 0:00:32]}  Nf4 {[%clk 0:00:20]} 47. Bxf4 {[%clk 0:00:27]}  gxf4 {[%clk 0:00:21]} 48. Rc1 {[%clk 0:00:26]}  Kg7 {[%clk 0:00:18]} 49. g5 {[%clk 0:00:26]}  Qg6 {[%clk 0:00:17]} 50. Qh4 {[%clk 0:00:25]}  Rf8 {[%clk 0:00:15]} 51. Qg4 {[%clk 0:00:25]}  Rf7 {[%clk 0:00:12]} 52. Kxh3 {[%clk 0:00:23]}  Ne2 {[%clk 0:00:09]} 53. Rc8 {[%clk 0:00:19]}  Ng3 {[%clk 0:00:09]} 54. Kg2 {[%clk 0:00:18]}  Qh7 {[%clk 0:00:08]} 55. Nf2 {[%clk 0:00:17]}  Qg6 {[%clk 0:00:08]} 56. Qh4 {[%clk 0:00:16]}  Bf8 {[%clk 0:00:08]} 57. Ng4 {[%clk 0:00:14]}  Re7 {[%clk 0:00:08]} 58. Qh6+ {[%clk 0:00:12]}  Qxh6 {[%clk 0:00:04]} 59. gxh6+ {[%clk 0:00:12]}  Kf7 {[%clk 0:00:05]} 60. Kh2 {[%clk 0:00:08]}  Bxh6 {[%clk 0:00:03]} 61. Nxh6+ {[%clk 0:00:07]}  Kg6 {[%clk 0:00:04]} 62. Nf5 {[%clk 0:00:03]}  Rh7+ {[%clk 0:00:04]} 63. Kg2 {[%clk 0:00:03]}  Rxh1 {[%clk 0:00:05]} 64. Nxg3 {[%clk 0:00:03]}  Rb1 {[%clk 0:00:05]} 65. Nf5 {[%clk 0:00:02]}  Rxb4 {[%clk 0:00:06]} 66. Rg8+ {[%clk 0:00:01]}  Kf6 {[%clk 0:00:07]} 67. Rf8+ {[%clk 0:00:01]}  Kg5 {[%clk 0:00:07]} 68. d6 {[%clk 0:00:02]}  Rb2+ {[%clk 0:00:08]} 69. Kf1 {[%clk 0:00:02]}  Rc2 {[%clk 0:00:08]} 70. Ke1 {[%clk 0:00:02]}  Rd2 {[%clk 0:00:09]} 71. Rf7 {[%clk 0:00:02]}  Kg6 {[%clk 0:00:10]} 72. Kxd2 {[%clk 0:00:02]}  Kxf7 {[%clk 0:00:10]} 73. Kd3 {[%clk 0:00:03]}  Ke6 {[%clk 0:00:11]} 74. Kc4 {[%clk 0:00:03]}  b5+ {[%clk 0:00:12]} 75. axb6 {[%clk 0:00:04]}  Kd7 {[%clk 0:00:13]} 76. Kc5 {[%clk 0:00:04]}  Kc8 {[%clk 0:00:13]} 77. Kc6 {[%clk 0:00:04]}  Kb8 {[%clk 0:00:13]} 78. d7 {[%clk 0:00:05]}  Ka8 {[%clk 0:00:14]} 79. d8=Q# {[%clk 0:00:05]} 1-0


[Site "https://www.chess.com"]

[Event "Titled Tuesday Blitz April 11 Late 2023"]
[White "Holt, Conrad"]
[Black "Zhigalko, Sergei"]
[WhiteFideId "2034387"]
[BlackFideId "13502956"]
[WhiteElo "2592"]
[BlackElo "2626"]
[Result "0-1"]
[Round "07"]
[TimeControl "180+2"]
[Date "2023.04.11"]
[WhiteClock "0:00:01"]
[BlackClock "0:00:04"]

1. d4 {[%clk 0:03:00]}  d5 {[%clk 0:02:59]} 2. c4 {[%clk 0:03:01]}  e6 {[%clk 0:02:59]} 3. Nc3 {[%clk 0:03:01]}  c6 {[%clk 0:03:00]} 4. e3 {[%clk 0:03:00]}  Bd6 {[%clk 0:03:00]} 5. Qg4 {[%clk 0:02:57]}  g6 {[%clk 0:02:42]} 6. Qf3 {[%clk 0:02:31]}  f5 {[%clk 0:02:40]} 7. Qd1 {[%clk 0:02:26]}  Nf6 {[%clk 0:02:40]} 8. Nf3 {[%clk 0:02:26]}  Nbd7 {[%clk 0:02:39]} 9. Bd3 {[%clk 0:02:25]}  Ne4 {[%clk 0:02:38]} 10. O-O {[%clk 0:02:25]}  O-O {[%clk 0:02:38]} 11. Qc2 {[%clk 0:02:24]}  b6 {[%clk 0:02:33]} 12. b3 {[%clk 0:02:23]}  Bb7 {[%clk 0:02:33]} 13. Bb2 {[%clk 0:02:23]}  Rc8 {[%clk 0:02:34]} 14. Rac1 {[%clk 0:02:21]}  Qe7 {[%clk 0:02:24]} 15. Rfd1 {[%clk 0:02:18]}  g5 {[%clk 0:02:18]} 16. Ne2 {[%clk 0:02:15]}  Qf6 {[%clk 0:01:42]} 17. c5 {[%clk 0:02:09]}  Bb8 {[%clk 0:01:41]} 18. b4 {[%clk 0:02:04]}  g4 {[%clk 0:01:32]} 19. Ne5 {[%clk 0:01:54]}  Nxe5 {[%clk 0:01:32]} 20. dxe5 {[%clk 0:01:54]}  Bxe5 {[%clk 0:01:32]} 21. Bxe5 {[%clk 0:01:53]}  Qxe5 {[%clk 0:01:33]} 22. Qa4 {[%clk 0:01:49]}  Qb8 {[%clk 0:01:14]} 23. Nf4 {[%clk 0:01:10]}  e5 {[%clk 0:01:09]} 24. Nh5 {[%clk 0:01:06]}  Rc7 {[%clk 0:00:50]} 25. Qa3 {[%clk 0:00:56]}  b5 {[%clk 0:00:31]} 26. f4 {[%clk 0:00:45]}  gxf3 {[%clk 0:00:24]} 27. gxf3 {[%clk 0:00:46]}  Ng5 {[%clk 0:00:25]} 28. f4 {[%clk 0:00:43]}  Qe8 {[%clk 0:00:25]} 29. Ng3 {[%clk 0:00:20]}  exf4 {[%clk 0:00:25]} 30. Nxf5 {[%clk 0:00:20]}  Bc8 {[%clk 0:00:08]} 31. Nh4 {[%clk 0:00:02]}  Rg7 {[%clk 0:00:03]} 32. Kh1 {[%clk 0:00:02]}  Nh3 {[%clk 0:00:03]} 33. Rf1 {[%clk 0:00:02]}  fxe3 {[%clk 0:00:03]} 34. Rxf8+ {[%clk 0:00:01]}  Qxf8 {[%clk 0:00:04]} 0-1


[Site "https://www.chess.com"]

[Event "Titled Tuesday Blitz April 11 Late 2023"]
[White "Mortazavi, Ali"]
[Black "Kravtsiv, Martyn"]
[WhiteFideId "401323"]
[BlackFideId "14113147"]
[WhiteElo "2339"]
[BlackElo "2695"]
[Result "1-0"]
[Round "07"]
[TimeControl "180+2"]
[Date "2023.04.11"]
[WhiteClock "0:00:01"]
[BlackClock "0:00:01"]

1. Nf3 {[%clk 0:03:00]}  d5 {[%clk 0:02:59]} 2. g3 {[%clk 0:03:01]}  c5 {[%clk 0:02:59]} 3. Bg2 {[%clk 0:03:01]}  Nf6 {[%clk 0:02:59]} 4. O-O {[%clk 0:03:02]}  Nc6 {[%clk 0:02:58]} 5. d3 {[%clk 0:03:03]}  e5 {[%clk 0:02:57]} 6. Bg5 {[%clk 0:03:01]}  Bd6 {[%clk 0:02:51]} 7. Nc3 {[%clk 0:02:56]}  Be6 {[%clk 0:02:49]} 8. e4 {[%clk 0:02:54]}  d4 {[%clk 0:02:32]} 9. Nd5 {[%clk 0:02:54]}  Be7 {[%clk 0:02:19]} 10. Bxf6 {[%clk 0:02:45]}  Bxf6 {[%clk 0:02:18]} 11. c4 {[%clk 0:02:46]}  Be7 {[%clk 0:02:11]} 12. a3 {[%clk 0:02:40]}  O-O {[%clk 0:02:08]} 13. Rb1 {[%clk 0:02:38]}  a5 {[%clk 0:02:07]} 14. Nd2 {[%clk 0:02:31]}  Bd6 {[%clk 0:01:46]} 15. f4 {[%clk 0:02:24]}  f6 {[%clk 0:01:46]} 16. Kh1 {[%clk 0:02:18]}  Kh8 {[%clk 0:01:45]} 17. Qe2 {[%clk 0:02:04]}  Rb8 {[%clk 0:01:44]} 18. a4 {[%clk 0:01:57]}  Nb4 {[%clk 0:01:34]} 19. b3 {[%clk 0:01:58]}  Na2 {[%clk 0:01:25]} 20. Ra1 {[%clk 0:01:45]}  Bxd5 {[%clk 0:01:24]} 21. cxd5 {[%clk 0:01:34]}  Nc3 {[%clk 0:01:25]} 22. Qh5 {[%clk 0:01:33]}  Qc7 {[%clk 0:01:17]} 23. Nc4 {[%clk 0:01:21]}  exf4 {[%clk 0:01:08]} 24. Nxd6 {[%clk 0:01:17]}  Qxd6 {[%clk 0:01:07]} 25. gxf4 {[%clk 0:01:18]}  Rfe8 {[%clk 0:00:58]} 26. Bh3 {[%clk 0:01:10]}  b5 {[%clk 0:00:55]} 27. Bf5 {[%clk 0:01:09]}  g6 {[%clk 0:00:45]} 28. Bxg6 {[%clk 0:01:09]}  Re7 {[%clk 0:00:46]} 29. axb5 {[%clk 0:00:52]}  Rxb5 {[%clk 0:00:44]} 30. Bf5 {[%clk 0:00:52]}  Rxb3 {[%clk 0:00:26]} 31. Rxa5 {[%clk 0:00:43]}  Rb8 {[%clk 0:00:27]} 32. Qh6 {[%clk 0:00:39]}  Rg8 {[%clk 0:00:08]} 33. Raa1 {[%clk 0:00:17]}  Ne2 {[%clk 0:00:06]} 34. Rf2 {[%clk 0:00:13]}  Nc3 {[%clk 0:00:04]} 35. Raf1 {[%clk 0:00:10]}  Reg7 {[%clk 0:00:04]} 36. Bh3 {[%clk 0:00:07]}  Qe7 {[%clk 0:00:04]} 37. Rg2 {[%clk 0:00:07]}  Nxe4 {[%clk 0:00:02]} 38. Rxg7 {[%clk 0:00:04]}  Rxg7 {[%clk 0:00:02]} 39. Be6 {[%clk 0:00:03]}  Nd6 {[%clk 0:00:01]} 40. Rg1 {[%clk 0:00:02]}  c4 {[%clk 0:00:01]} 41. Ra1 {[%clk 0:00:01]} 1-0


[Site "https://www.chess.com"]

[Event "Titled Tuesday Blitz April 11 Late 2023"]
[White "Nakamura, Hikaru"]
[Black "Kosteniuk, Alexandra"]
[WhiteFideId "2016192"]
[BlackFideId "4128125"]
[WhiteElo "2885"]
[BlackElo "2453"]
[Result "1-0"]
[Round "07"]
[TimeControl "180+2"]
[Date "2023.04.11"]
[WhiteClock "0:00:13"]
[BlackClock "0:00:01"]

1. e4 {[%clk 0:03:00]}  c6 {[%clk 0:02:59]} 2. Nc3 {[%clk 0:03:00]}  d5 {[%clk 0:02:59]} 3. Nf3 {[%clk 0:03:01]}  dxe4 {[%clk 0:02:59]} 4. Nxe4 {[%clk 0:03:01]}  Nf6 {[%clk 0:02:59]} 5. Qe2 {[%clk 0:03:01]}  Nxe4 {[%clk 0:02:59]} 6. Qxe4 {[%clk 0:03:02]}  Nd7 {[%clk 0:03:00]} 7. Bc4 {[%clk 0:03:02]}  Nf6 {[%clk 0:03:00]} 8. Qe2 {[%clk 0:03:03]}  Bf5 {[%clk 0:02:49]} 9. d4 {[%clk 0:03:02]}  e6 {[%clk 0:02:49]} 10. c3 {[%clk 0:03:01]}  Be7 {[%clk 0:02:47]} 11. a4 {[%clk 0:03:01]}  a5 {[%clk 0:02:40]} 12. O-O {[%clk 0:03:00]}  O-O {[%clk 0:02:35]} 13. h3 {[%clk 0:03:00]}  h6 {[%clk 0:02:29]} 14. Ne5 {[%clk 0:02:58]}  Nd5 {[%clk 0:02:27]} 15. Bd2 {[%clk 0:02:51]}  Re8 {[%clk 0:02:18]} 16. f4 {[%clk 0:02:51]}  Bf8 {[%clk 0:01:58]} 17. g4 {[%clk 0:02:49]}  Bh7 {[%clk 0:01:58]} 18. g5 {[%clk 0:02:49]}  Bf5 {[%clk 0:01:51]} 19. Rf3 {[%clk 0:02:43]}  h5 {[%clk 0:01:44]} 20. g6 {[%clk 0:02:39]}  f6 {[%clk 0:01:35]} 21. Nf7 {[%clk 0:01:38]}  Qc7 {[%clk 0:01:34]} 22. Bd3 {[%clk 0:01:29]}  Ne7 {[%clk 0:01:17]} 23. Rg3 {[%clk 0:01:20]}  Bxd3 {[%clk 0:01:01]} 24. Qxd3 {[%clk 0:01:18]}  Nf5 {[%clk 0:00:52]} 25. Rg2 {[%clk 0:01:16]}  Nh4 {[%clk 0:00:46]} 26. Qe2 {[%clk 0:01:10]}  Nxg6 {[%clk 0:00:42]} 27. Rxg6 {[%clk 0:01:07]}  Qxf7 {[%clk 0:00:41]} 28. Qxh5 {[%clk 0:01:08]}  Qd7 {[%clk 0:00:29]} 29. Qg4 {[%clk 0:00:54]}  Kf7 {[%clk 0:00:28]} 30. Kh2 {[%clk 0:00:53]}  Qd5 {[%clk 0:00:26]} 31. Rg1 {[%clk 0:00:53]}  Ke7 {[%clk 0:00:24]} 32. Qe2 {[%clk 0:00:39]}  Kd7 {[%clk 0:00:19]} 33. c4 {[%clk 0:00:39]}  Qf5 {[%clk 0:00:20]} 34. Be3 {[%clk 0:00:35]}  Kc8 {[%clk 0:00:17]} 35. b3 {[%clk 0:00:30]}  Bd6 {[%clk 0:00:17]} 36. Rxg7 {[%clk 0:00:27]}  Bxf4+ {[%clk 0:00:17]} 37. Bxf4 {[%clk 0:00:28]}  Qxf4+ {[%clk 0:00:17]} 38. R1g3 {[%clk 0:00:29]}  Qxd4 {[%clk 0:00:15]} 39. Qh5 {[%clk 0:00:27]}  Rd8 {[%clk 0:00:15]} 40. Qf7 {[%clk 0:00:24]}  Qd2+ {[%clk 0:00:13]} 41. Rg2 {[%clk 0:00:24]}  Qf4+ {[%clk 0:00:11]} 42. R7g3 {[%clk 0:00:24]}  Kb8 {[%clk 0:00:08]} 43. Qxe6 {[%clk 0:00:23]}  Ka7 {[%clk 0:00:08]} 44. Qe3+ {[%clk 0:00:22]}  Qxe3 {[%clk 0:00:07]} 45. Rxe3 {[%clk 0:00:22]}  Rd7 {[%clk 0:00:07]} 46. Rf2 {[%clk 0:00:22]}  Rf8 {[%clk 0:00:07]} 47. h4 {[%clk 0:00:21]}  f5 {[%clk 0:00:07]} 48. Re5 {[%clk 0:00:21]}  Rdf7 {[%clk 0:00:06]} 49. Rxa5+ {[%clk 0:00:19]}  Kb6 {[%clk 0:00:07]} 50. Re5 {[%clk 0:00:20]}  Kc7 {[%clk 0:00:07]} 51. c5 {[%clk 0:00:20]}  f4 {[%clk 0:00:06]} 52. h5 {[%clk 0:00:21]}  Rf5 {[%clk 0:00:06]} 53. Rxf5 {[%clk 0:00:12]}  Rxf5 {[%clk 0:00:06]} 54. h6 {[%clk 0:00:13]}  Rxc5 {[%clk 0:00:03]} 55. Rf3 {[%clk 0:00:13]}  Rf5 {[%clk 0:00:01]} 56. h7 {[%clk 0:00:12]}  Rf8 {[%clk 0:00:02]} 57. Rxf4 {[%clk 0:00:12]}  Rh8 {[%clk 0:00:02]} 58. Rf7+ {[%clk 0:00:13]}  Kb6 {[%clk 0:00:02]} 59. Kg3 {[%clk 0:00:13]}  Ka6 {[%clk 0:00:01]} 60. Kf4 {[%clk 0:00:13]} 1-0


[Site "https://www.chess.com"]

[Event "Titled Tuesday Blitz April 11 Late 2023"]
[White "Grigorjev, Iljya"]
[Black "Tang, Andrew"]
[WhiteFideId "24159565"]
[BlackFideId "2059630"]
[WhiteElo "2323"]
[BlackElo "2596"]
[Result "1-0"]
[Round "07"]
[TimeControl "180+2"]
[Date "2023.04.11"]
[WhiteClock "0:01:16"]
[BlackClock "0:00:46"]

1. d4 {[%clk 0:03:00]}  d5 {[%clk 0:02:42]} 2. c4 {[%clk 0:03:00]}  e6 {[%clk 0:02:41]} 3. Nf3 {[%clk 0:03:00]}  Nf6 {[%clk 0:02:40]} 4. g3 {[%clk 0:03:01]}  dxc4 {[%clk 0:02:33]} 5. Bg2 {[%clk 0:03:01]}  Nc6 {[%clk 0:02:30]} 6. Qa4 {[%clk 0:03:00]}  Bd7 {[%clk 0:02:28]} 7. Qxc4 {[%clk 0:02:55]}  Na5 {[%clk 0:02:24]} 8. Qd3 {[%clk 0:02:51]}  c5 {[%clk 0:02:23]} 9. Nc3 {[%clk 0:02:45]}  Bc6 {[%clk 0:02:17]} 10. O-O {[%clk 0:02:37]}  Be7 {[%clk 0:01:58]} 11. Rd1 {[%clk 0:02:30]}  O-O {[%clk 0:01:56]} 12. Rb1 {[%clk 0:02:24]}  c4 {[%clk 0:01:31]} 13. Qc2 {[%clk 0:02:20]}  b5 {[%clk 0:01:31]} 14. b4 {[%clk 0:02:09]}  cxb3 {[%clk 0:01:28]} 15. axb3 {[%clk 0:02:09]}  b4 {[%clk 0:01:28]} 16. Na4 {[%clk 0:02:04]}  Be4 {[%clk 0:01:22]} 17. Qa2 {[%clk 0:02:01]}  Bxb1 {[%clk 0:01:20]} 18. Qxb1 {[%clk 0:02:02]}  Rc8 {[%clk 0:01:16]} 19. Ne5 {[%clk 0:01:52]}  Nd5 {[%clk 0:01:16]} 20. Bd2 {[%clk 0:01:37]}  Nc3 {[%clk 0:01:14]} 21. Bxc3 {[%clk 0:01:38]}  bxc3 {[%clk 0:01:15]} 22. Qc2 {[%clk 0:01:28]}  Qd6 {[%clk 0:01:13]} 23. e3 {[%clk 0:01:25]}  Rc7 {[%clk 0:01:07]} 24. Nd3 {[%clk 0:01:24]}  Qb4 {[%clk 0:00:53]} 25. Nxb4 {[%clk 0:01:23]}  Bxb4 {[%clk 0:00:53]} 26. Nc5 {[%clk 0:01:20]}  Rcc8 {[%clk 0:00:46]} 27. Ra1 {[%clk 0:01:16]} 1-0


[Site "https://www.chess.com"]